[Event "44th Chess Olympiad Open 2022"]
[Site "Chennai"]
[Date "2022.07.29"]
[Round "1.74"]
[White "Msellek, Ilyass"]
[Black "Koumba, Mounguen Jose Evrar"]
[Result "1-0"]
[WhiteElo "2398"]
[BlackElo "1942"]
[Annotator "TA"]
[PlyCount "85"]
[EventDate "2022.??.??"]
[TimeControl "60"]

{[%evp 16,85,36,30,63,76,60,49,43,37,128,128,208,133,195,186,197,160,160,93,
110,103,83,101,136,128,194,183,192,165,843,842,817,777,797,445,446,362,411,404,
416,254,510,496,1264,1296,1088,574,927,505,502,502,470,459,582,583,548,564,829,
827,664,501,889,856,12837,1124,29986,29985,29986,29987,29997,29998]} 1. e4 {
[%emt 0:00:04]} c5 {[%emt 0:00:06]} 2. Nf3 {[%emt 0:00:06]} d6 {[%emt 0:00:06]}
3. Bb5+ {[%emt 0:00:20]} Bd7 {[%emt 0:00:46]} 4. Bxd7+ {[%emt 0:00:17]} Qxd7 {
[%emt 0:00:11]} 5. O-O {[%emt 0:00:20]} Nc6 {[%emt 0:01:05]} 6. c3 {[%emt 0:00:
00][%cal Yc2c3,Yc3d4]} Nf6 {[%emt 0:02:40]} 7. Re1 {[%emt 0:00:07]} g6 {
[%emt 0:00:54]} 8. d4 {[%emt 0:00:05]} cxd4 {[%emt 0:02:01]} 9. cxd4 {[%emt 0:
00:00]} e5 {[%emt 0:02:48] B52: Sicilian: Moscow Variation with 3...Bd7.} 10.
Nc3 {[%emt 0:08:17]} Bg7 {[%emt 0:01:12]} 11. h3 {[%emt 0:21:27]} O-O {[%emt 0:
00:00] White is slightly better.} 12. Bg5 {[%emt 0:00:25] [#]} Nh5 $146 {
[%emt 0:11:54]} (12... exd4 $14 13. Nxd4 h6 14. Bxf6 Bxf6) ({Predecessor:} 
12... Nxd4 13. Nxd4 exd4 14. Qxd4 Ng4 15. Qd2 h6 16. Bf4 g5 17. hxg4 gxf4 18.
Qxf4 Be5 19. Qxh6 Qxg4 20. Nd5 f6 21. Ne7+ Kf7 22. Qh7+ Ke8 23. Nf5 Rf7 24.
Qxf7+ {1-0 (24) Francisco Guecamburu,C (2223)-Correa,L (1792) Neuquen 2022})
13. dxe5 $16 {[%emt 0:06:28]} Nxe5 {[%emt 0:00:17]} (13... h6 $16 {keeps
fighting.}) 14. Nd5 {[%emt 0:05:26]} Rae8 {[%emt 0:07:43] [#]} (14... f6 $16)
15. Rc1 $1 $18 {[%emt 0:07:52] Threatens to win with Rc7.} Nc6 {[%emt 0:17:06]}
16. g4 {[%emt 0:13:12]} h6 {[%emt 0:00:57]} 17. Bd2 {[%emt 0:01:34] 0x0.
002089403da9dp-1022s more active pieces.} (17. gxh5 $142 {Strongly threatening
Bf6.} hxg5 18. h6 (18. Nxg5 f6 $11)) 17... Nf6 $16 {[%emt 0:02:34]} 18. Nxf6+ {
[%emt 0:01:19]} Bxf6 {[%emt 0:00:06]} 19. Bxh6 {[%emt 0:00:17]} Bg7 {[%emt 0:
00:00]} 20. Qd2 $36 {[%emt 0:00:41] White is really pushing.} Re6 {[%emt 0:03:
39]} (20... Ne5 $16 21. Nxe5 Bxh6) 21. Bxg7 $18 {[%emt 0:03:12]} Kxg7 {[%emt 0:
00:22]} 22. Nd4 {[%emt 0:00:24]} Rf6 {[%emt 0:05:43] [#]} (22... Nxd4 23. Qxd4+
Kg8 24. Qxa7 Qe7) 23. Nxc6 {[%emt 0:05:31]} bxc6 {[%emt 0:00:16]} 24. Qc3 {
[%emt 0:00:05]} g5 {[%emt 0:02:25]} 25. e5 {[%emt 0:02:23]} dxe5 {[%emt 0:02:
35]} 26. Rxe5 {[%emt 0:07:57]} Kg6 {[%emt 0:01:44]} 27. Qe3 {[%emt 0:06:16]}
Rf4 {[%emt 0:00:42]} 28. Re4 {[%emt 0:02:19]} Rf6 $2 {[%emt 0:00:00]} (28...
Rxe4 29. Qxe4+ Kg7 30. Rxc6 Re8) 29. Rc5 {[%emt 0:00:37][%cal Yc1c5,Yc5g5,
Yg5h5]} Qd6 {[%emt 0:06:27]} (29... Kh7 $142 30. Rxg5 Rg6 31. Rh5+ Kg8) 30.
Rxg5+ {[%emt 0:00:27]} Kh7 {[%emt 0:00:18]} 31. Rh5+ {[%emt 0:00:26]} Kg7 {
[%emt 0:00:12]} 32. Ree5 {[%emt 0:00:33]} Rd8 {[%emt 0:00:00]} 33. Reg5+ {
[%emt 0:01:40]} Rg6 {[%emt 0:00:10]} 34. Qc3+ {[%emt 0:01:02]} f6 {[%emt 0:02:
09]} 35. Rxg6+ {[%emt 0:00:19]} Kxg6 {[%emt 0:00:09] Endgame KQR-KQR} 36. Qe3 {
[%emt 0:00:47]} Kf7 {[%emt 0:03:59]} 37. Qxa7+ {[%emt 0:01:11]} Ke6 {[%emt 0:
00:41]} 38. Kg2 {[%emt 0:00:43]} Qb4 {[%emt 0:00:00]} (38... Qd4 $142 39. Qh7
Rd7) 39. Qe3+ {[%emt 0:00:21]} Kd6 {[%emt 0:00:29]} 40. a3 {[%emt 0:01:43]}
Qxb2 {[%emt 0:02:21]} 41. Qd3+ {[%emt 0:30:22] White mates.} Kc7 {[%emt 0:30:
52]} 42. Rh7+ {[%emt 0:00:06]} Kc8 {[%emt 0:00:06]} 43. Qa6+ {[%emt 0:00:05]
Weighted Error Value: White=0.72/Black=0.53} 1-0

[Event "44th Chess Olympiad Open 2022"]
[Site "Chennai"]
[Date "2022.07.29"]
[Round "1.74"]
[White "Hadj Kholti, Yasser"]
[Black "Bongo Ngombele, Tary"]
[Result "1-0"]
[WhiteElo "1871"]
[BlackElo "1688"]
[Annotator "NA RC"]
[PlyCount "69"]
[EventDate "2022.??.??"]
[TimeControl "60"]

1. e4 {[%emt 0:00:12]} e5 {[%emt 0:00:00]} 2. Nf3 {[%emt 0:00:10]} Nc6 {
[%emt 0:00:00]} 3. c3 {[%emt 0:00:22]} Nf6 {[%emt 0:00:00]} 4. d4 {[%emt 0:00:
00]} exd4 {[%emt 0:00:49]} 5. e5 {[%emt 0:00:06]} Nd5 {[%emt 0:00:44]} 6. cxd4
{[%emt 0:00:27]} d6 {[%emt 0:00:51]} 7. Bb5 {[%emt 0:02:04]} a6 {[%emt 0:02:06]
} 8. Bxc6+ {[%emt 0:00:59]} bxc6 {[%emt 0:00:11]} 9. O-O {[%emt 0:00:15]} Be7 {
[%emt 0:01:35]} 10. exd6 {[%emt 0:03:08]} cxd6 {[%emt 0:04:04]} 11. Nc3 {
[%emt 0:03:42]} Nf6 {[%emt 0:00:37]} 12. d5 {[%emt 0:05:08]} c5 {[%emt 0:02:04]
} 13. Re1 {[%emt 0:18:23]} O-O {[%emt 0:02:11]} 14. h3 {[%emt 0:00:35]} h6 {
[%emt 0:03:06]} 15. Qd3 {[%emt 0:02:54]} Rb8 {[%emt 0:04:03]} 16. Nd2 {[%emt 0:
00:00]} Bb7 {[%emt 0:06:54]} 17. Nc4 {[%emt 0:01:01]} Qc7 {[%emt 0:04:34]} 18.
Bf4 {[%emt 0:00:31]} Nh5 {[%emt 0:04:31]} 19. Rxe7 {[%emt 0:12:39]} Qxe7 {
[%emt 0:01:11]} 20. Bxd6 {[%emt 0:00:11]} Qg5 {[%emt 0:00:42]} 21. Qf3 {
[%emt 0:07:36]} Rbd8 {[%emt 0:03:13]} 22. Bxf8 {[%emt 0:00:13]} Kxf8 {[%emt 0:
00:00]} 23. Rd1 {[%emt 0:02:22]} Nf6 {[%emt 0:05:25]} 24. Ne3 {[%emt 0:02:16]}
Qe5 {[%emt 0:11:26]} 25. Ng4 {[%emt 0:03:49]} Qh5 {[%emt 0:03:18]} 26. Qe3 {
[%emt 0:01:46]} Nxg4 {[%emt 0:09:13]} 27. Qxc5+ {[%emt 0:00:14]} Kg8 {[%emt 0:
00:00]} 28. Qc7 {[%emt 0:02:36]} Rxd5 {[%emt 0:05:38]} 29. Nxd5 {[%emt 0:00:44]
} Ne5 {[%emt 0:04:46]} 30. Ne7+ {[%emt 0:00:31]} Kh7 {[%emt 0:00:27]} 31. Rd8 {
[%emt 0:00:59]} Nf3+ {[%emt 0:01:57]} 32. gxf3 {[%emt 0:00:12]} Qxf3 {[%emt 0:
00:00]} 33. Rh8+ {[%emt 0:00:05]} Kxh8 {[%emt 0:01:42]} 34. Qd8+ {[%emt 0:00:
00]} Kh7 {[%emt 0:01:08]} 35. Qg8# {[%emt 0:00:03]} 1-0

[Event "44th Chess Olympiad Open 2022"]
[Site "Chennai"]
[Date "2022.07.29"]
[Round "1.75"]
[White "Guzman, Christopher"]
[Black "Brookfield, Toby"]
[Result "1-0"]
[WhiteElo "2243"]
[BlackElo "1815"]
[Annotator "NA RC"]
[PlyCount "67"]
[EventDate "2022.??.??"]
[TimeControl "60"]

1. e4 {[%emt 0:00:06]} c5 {[%emt 0:00:05]} 2. Nf3 {[%emt 0:00:05]} d6 {[%emt 0:
00:00]} 3. d4 {[%emt 0:00:02]} cxd4 {[%emt 0:00:09]} 4. Nxd4 {[%emt 0:00:03]}
Nf6 {[%emt 0:00:08]} 5. Nc3 {[%emt 0:00:02]} g6 {[%emt 0:00:09]} 6. Be3 {
[%emt 0:03:27]} Bg7 {[%emt 0:00:31]} 7. Be2 {[%emt 0:01:35]} O-O {[%emt 0:00:
00]} 8. Qd2 {[%emt 0:00:08]} Nc6 {[%emt 0:00:23]} 9. O-O-O {[%emt 0:02:37]} d5
{[%emt 0:04:05]} 10. Nxc6 {[%emt 0:03:35]} bxc6 {[%emt 0:00:09]} 11. exd5 {
[%emt 0:00:03]} Nxd5 {[%emt 0:01:49]} 12. Nxd5 {[%emt 0:00:07]} cxd5 {[%emt 0:
00:00]} 13. Qxd5 {[%emt 0:00:10]} Qc7 {[%emt 0:03:02]} 14. Qc5 {[%emt 0:09:56]}
Qb7 {[%emt 0:20:16]} 15. Qa3 {[%emt 0:00:18]} Rb8 {[%emt 0:01:49]} 16. b3 {
[%emt 0:01:02]} Bf5 {[%emt 0:02:34]} 17. g4 {[%emt 0:06:56]} Bxc2 {[%emt 0:00:
00]} 18. Kxc2 {[%emt 0:00:46]} Rbc8+ {[%emt 0:00:25]} 19. Bc4 {[%emt 0:11:55]}
Qe4+ {[%emt 0:05:13]} 20. Kd2 {[%emt 0:00:57]} Rfd8+ {[%emt 0:02:08]} 21. Ke2 {
[%emt 0:00:11]} Qc2+ {[%emt 0:05:38]} 22. Rd2 {[%emt 0:00:12]} Rxd2+ {[%emt 0:
00:00]} 23. Bxd2 {[%emt 0:00:02]} Qe4+ {[%emt 0:02:25]} 24. Be3 {[%emt 0:00:05]
} Qxh1 {[%emt 0:00:34]} 25. Qxe7 {[%emt 0:00:15]} Qg2 {[%emt 0:09:31]} 26.
Bxf7+ {[%emt 0:03:43]} Kh8 {[%emt 0:00:12]} 27. Qd7 {[%emt 0:04:33]} Rf8 {
[%emt 0:02:21]} 28. h4 {[%emt 0:00:45]} Qe4 {[%emt 0:01:21]} 29. Bd5 {[%emt 0:
00:00]} Qc2+ {[%emt 0:06:30]} 30. Kf1 {[%emt 0:00:18]} Qc3 {[%emt 0:01:21]} 31.
Kg2 {[%emt 0:01:23]} Qf6 {[%emt 0:00:47]} 32. Qxa7 {[%emt 0:05:41]} Qxh4 {
[%emt 0:01:02]} 33. Qd7 {[%emt 0:00:16]} Bh6 {[%emt 0:05:25]} 34. Bd4+ {
[%emt 0:00:15]} 1-0

[Event "44th Chess Olympiad Open 2022"]
[Site "Chennai"]
[Date "2022.07.29"]
[Round "1.75"]
[White "Nevska, Gerda"]
[Black "Munoz Santana, Jose Lisandro"]
[Result "0-1"]
[WhiteElo "1840"]
[BlackElo "2423"]
[Annotator "TA"]
[PlyCount "54"]
[EventDate "2022.??.??"]
[TimeControl "60"]

{[%evp 9,54,0,0,-2,-2,-16,-13,-28,0,-8,0,-7,-13,-20,0,-29,-22,-60,-57,-58,-60,
-65,-67,-60,-59,-75,-57,-74,-55,-72,-76,-95,-89,-169,-164,-171,-172,-172,-171,
-172,-161,-161,-155,-169,-164,-734,-677]} 1. c4 {[%emt 0:00:46]} e5 {[%emt 0:
00:00]} 2. Nc3 {[%emt 0:00:10]} Bb4 {[%emt 0:00:24]} 3. e4 {[%emt 0:11:45]}
Bxc3 {[%emt 0:05:57]} 4. bxc3 {[%emt 0:04:07]} Nf6 {[%emt 0:01:34]} 5. Ba3 {
[%emt 0:06:46]} d6 {[%emt 0:01:09]} 6. d3 {[%emt 0:03:53] A21: English Opening:
1...e5 2 Nc3.} O-O {[%emt 0:00:20] [#]} 7. Rb1 $146 {[%emt 0:04:15]} ({
Predecessor:} 7. Nf3 Bg4 8. Be2 Nbd7 9. O-O Nb6 10. Qc2 Nbd7 11. Rab1 b6 12.
Rfd1 Ne8 13. d4 {1-0 (36) Buerger,T-Orlin,F Waldshut Tiengen 2014}) 7... Re8 {
[%emt 0:01:10]} 8. Ne2 {[%emt 0:05:52] The position is equal.} c6 {[%emt 0:00:
00]} 9. Ng3 {[%emt 0:06:15]} d5 {[%emt 0:00:11]} 10. cxd5 {[%emt 0:00:20]} cxd5
{[%emt 0:00:06]} 11. Be2 {[%emt 0:00:15]} Qa5 {[%emt 0:16:13]} 12. Bb4 {
[%emt 0:07:44]} Qc7 {[%emt 0:00:09] [#] aiming for ...a5.} 13. c4 {[%emt 0:00:
00]} dxc4 {[%emt 0:04:01]} 14. dxc4 {[%emt 0:13:54]} Rd8 {[%emt 0:01:48]
Against Bd6} 15. Qc2 {[%emt 0:04:27]} Nc6 {[%emt 0:00:49]} 16. O-O {[%emt 0:00:
00]} Be6 {[%emt 0:06:42]} 17. Bc3 {[%emt 0:10:48]} Rac8 {[%emt 0:16:47]} 18.
Qb2 {[%emt 0:05:17]} b6 {[%emt 0:01:23]} 19. Rfd1 {[%emt 0:00:36]} Nd7 {
[%emt 0:02:11][%cal Yf6d7,Yd7c5,Yc5a4,Ya4c3]} 20. Nf1 {[%emt 0:03:22]} Nc5 {
[%emt 0:00:43]} 21. f3 {[%emt 0:00:48] [#]} (21. Rxd8+ $17 Rxd8 22. Nd2) 21...
Na4 $1 $19 {[%emt 0:13:24] Pair of Knights!} 22. Qa3 {[%emt 0:02:24]} Nxc3 {
[%emt 0:01:24]} 23. Qxc3 {[%emt 0:01:31]} Nd4 {[%emt 0:00:29]} 24. Kf2 {
[%emt 0:04:06]} Nxe2 {[%emt 0:02:22]} ({Not} 24... Bxc4 25. Qxc4 Qxc4 26. Bxc4
Rxc4 27. Ne3 $17) 25. Kxe2 {[%emt 0:00:41]} Rxd1 {[%emt 0:08:53]} 26. Rxd1 {
[%emt 0:00:05]} Qxc4+ {[%emt 0:03:58]} ({Worse is} 26... Bxc4+ 27. Kf2 $17) 27.
Qd3 $2 {[%emt 0:01:37]} (27. Qxc4 Bxc4+ 28. Ke1) 27... Rd8 {[%emt 0:00:46]
Weighted Error Value: White=0.45/Black=0.04 (flawless)} 0-1

[Event "44th Chess Olympiad Open 2022"]
[Site "Chennai"]
[Date "2022.07.29"]
[Round "1.75"]
[White "Morgan, Jamie"]
[Black "Arvelo Leo, Gian Carlo"]
[Result "1/2-1/2"]
[WhiteElo "1753"]
[BlackElo "2176"]
[Annotator "ChessBase"]
[PlyCount "65"]
[EventDate "2022.??.??"]
[TimeControl "60"]

1. e4 {[%emt 0:00:11]} c5 {[%emt 0:00:06]} 2. Nc3 {[%emt 0:00:15]} e6 {[%emt 0:
00:00]} 3. Nge2 {[%emt 0:01:51]} Nc6 {[%emt 0:03:08]} 4. g3 {[%emt 0:02:06]} d5
{[%emt 0:06:23]} 5. exd5 {[%emt 0:01:41]} exd5 {[%emt 0:00:08]} 6. d4 {[%emt 0:
00:00]} Bg4 {[%emt 0:04:01]} 7. Bg2 {[%emt 0:03:04]} Nxd4 {[%emt 0:24:59]} 8.
h3 {[%emt 0:01:04]} Bf3 {[%emt 0:04:06]} 9. Kf1 {[%emt 0:00:40]} Nf6 {[%emt 0:
00:00]} 10. Bxf3 {[%emt 0:05:57]} Nxf3 {[%emt 0:00:07]} 11. Kg2 {[%emt 0:01:17]
} Ne5 {[%emt 0:03:53]} 12. Re1 {[%emt 0:02:10]} Bd6 {[%emt 0:20:47]} 13. Nxd5 {
[%emt 0:07:42]} O-O {[%emt 0:02:12]} 14. Bg5 {[%emt 0:02:24]} Ned7 {[%emt 0:00:
00]} 15. Nec3 {[%emt 0:04:38]} Be5 {[%emt 0:02:11]} 16. Qf3 {[%emt 0:05:06]} h6
{[%emt 0:01:24]} 17. Nxf6+ {[%emt 0:01:33]} Bxf6 {[%emt 0:00:33]} 18. Bxf6 {
[%emt 0:00:19]} Nxf6 {[%emt 0:00:06]} 19. Rad1 {[%emt 0:03:52]} Qb6 {[%emt 0:
00:00]} 20. Na4 {[%emt 0:02:14]} Qc7 {[%emt 0:00:19]} 21. c4 {[%emt 0:06:13]}
Rad8 {[%emt 0:00:24]} 22. Nc3 {[%emt 0:00:31]} b6 {[%emt 0:01:14]} 23. Nb5 {
[%emt 0:02:40]} Qb8 {[%emt 0:00:14]} 24. Re7 {[%emt 0:04:31]} Rxd1 {[%emt 0:00:
00]} 25. Qxd1 {[%emt 0:00:07]} Rd8 {[%emt 0:00:18]} 26. Qf3 {[%emt 0:01:04]} a6
{[%emt 0:00:56]} 27. Nc7 {[%emt 0:03:18]} Kf8 {[%emt 0:00:17]} 28. Nxa6 {
[%emt 0:02:11]} Qd6 {[%emt 0:01:17]} 29. Ra7 {[%emt 0:03:41]} Qd4 {[%emt 0:00:
00]} 30. Ra8 {[%emt 0:02:47]} Kg8 {[%emt 0:00:33]} 31. Nc7 {[%emt 0:01:11]}
Rxa8 {[%emt 0:00:23]} 32. Qxa8+ {[%emt 0:00:10]} Kh7 {[%emt 0:00:08]} 33. Qf3 {
[%emt 0:07:32]} 1/2-1/2

[Event "44th Chess Olympiad Open 2022"]
[Site "Chennai"]
[Date "2022.07.29"]
[Round "1.76"]
[White "Arias Santana, Mauricio"]
[Black "Jaiswal Prashant S"]
[Result "1-0"]
[WhiteElo "2318"]
[BlackElo "1683"]
[Annotator "ChessBase"]
[PlyCount "55"]
[EventDate "2022.??.??"]
[TimeControl "60"]

1. d4 {[%emt 0:00:26]} Nf6 {[%emt 0:01:33]} 2. Nf3 {[%emt 0:00:38]} e6 {
[%emt 0:01:05]} 3. c4 {[%emt 0:00:19]} d5 {[%emt 0:01:14]} 4. Nc3 {[%emt 0:00:
00]} Be7 {[%emt 0:01:14]} 5. cxd5 {[%emt 0:00:10]} exd5 {[%emt 0:00:38]} 6. Bg5
{[%emt 0:00:03]} h6 {[%emt 0:00:45]} 7. Bh4 {[%emt 0:01:55]} c6 {[%emt 0:01:58]
} 8. Qc2 {[%emt 0:00:09]} Bg4 {[%emt 0:04:22]} 9. e3 {[%emt 0:11:10]} Nbd7 {
[%emt 0:08:33]} 10. Bd3 {[%emt 0:05:48]} O-O {[%emt 0:05:32]} 11. h3 {[%emt 0:
00:00]} Be6 {[%emt 0:00:13]} 12. g4 {[%emt 0:01:09]} Ne8 {[%emt 0:16:41]} 13.
Bxe7 {[%emt 0:01:53]} Qxe7 {[%emt 0:00:21]} 14. O-O-O {[%emt 0:03:12]} b5 {
[%emt 0:03:35]} 15. Kb1 {[%emt 0:09:40]} a5 {[%emt 0:01:32]} 16. g5 {[%emt 0:
00:00]} h5 {[%emt 0:06:53]} 17. Ne2 {[%emt 0:02:10]} g6 {[%emt 0:05:42]} 18.
Nf4 {[%emt 0:02:00]} Qd6 {[%emt 0:10:34]} 19. Rc1 {[%emt 0:03:27]} Ra6 {
[%emt 0:04:37]} 20. Nh4 {[%emt 0:10:02]} Ng7 {[%emt 0:06:57]} 21. Rhg1 {
[%emt 0:01:19]} Rb6 {[%emt 0:02:15]} 22. Rg3 {[%emt 0:00:24]} Rc8 {[%emt 0:00:
00]} 23. Nxe6 {[%emt 0:03:23]} Qxe6 {[%emt 0:00:25]} 24. f4 {[%emt 0:00:03]} c5
{[%emt 0:03:44]} 25. f5 {[%emt 0:00:16]} Qd6 {[%emt 0:00:10]} 26. Rgg1 {
[%emt 0:03:05]} gxf5 {[%emt 0:05:52]} 27. g6 {[%emt 0:02:14]} c4 {[%emt 0:00:
00]} 28. gxf7+ {[%emt 0:00:26]} 1-0

[Event "44th Chess Olympiad Open 2022"]
[Site "Chennai"]
[Date "2022.07.29"]
[Round "1.76"]
[White "Chaves Sanchez, Gabriel A"]
[Black "Terubea, Ronald"]
[Result "1-0"]
[WhiteElo "2125"]
[BlackElo "1742"]
[Annotator "NA RC"]
[PlyCount "45"]
[EventDate "2022.??.??"]
[TimeControl "60"]

1. e4 {[%emt 0:00:36]} d5 {[%emt 0:00:06]} 2. exd5 {[%emt 0:00:15]} Nf6 {
[%emt 0:00:12]} 3. d4 {[%emt 0:00:53]} Nxd5 {[%emt 0:01:14]} 4. Nf3 {[%emt 0:
00:00]} Bg4 {[%emt 0:00:37]} 5. Be2 {[%emt 0:00:13]} e6 {[%emt 0:01:52]} 6. O-O
{[%emt 0:02:43]} Nc6 {[%emt 0:01:23]} 7. c4 {[%emt 0:19:07]} Nb6 {[%emt 0:00:
00]} 8. Nc3 {[%emt 0:04:24]} Qd7 {[%emt 0:01:35]} 9. d5 {[%emt 0:04:27]} Bxf3 {
[%emt 0:03:50]} 10. Bxf3 {[%emt 0:00:58]} Ne5 {[%emt 0:01:03]} 11. dxe6 {
[%emt 0:01:13]} Qxd1 {[%emt 0:01:58]} 12. exf7+ {[%emt 0:04:20]} Kxf7 {[%emt 0:
00:00]} 13. Bxd1 {[%emt 0:00:25]} Nbxc4 {[%emt 0:03:52]} 14. Bb3 {[%emt 0:00:
00]} Bc5 {[%emt 0:12:15]} 15. Kh1 {[%emt 0:04:34]} b5 {[%emt 0:04:57]} 16. Nxb5
{[%emt 0:00:57]} Kf6 {[%emt 0:01:26]} 17. f4 {[%emt 0:00:56]} Nd3 {[%emt 0:00:
00]} 18. Bxc4 {[%emt 0:00:06]} Nf2+ {[%emt 0:00:14]} 19. Rxf2 {[%emt 0:00:06]}
Bxf2 {[%emt 0:00:24]} 20. Bd2 {[%emt 0:00:19]} c6 {[%emt 0:01:26]} 21. Bc3+ {
[%emt 0:00:07]} Kg6 {[%emt 0:01:06]} 22. Nd6 {[%emt 0:02:55]} c5 {[%emt 0:00:
00]} 23. Bf7+ {[%emt 0:00:09]} 1-0

[Event "44th Chess Olympiad Open 2022"]
[Site "Chennai"]
[Date "2022.07.29"]
[Round "1.76"]
[White "Prasad, Rudr"]
[Black "Chinchilla Miranda, Eugenio"]
[Result "0-1"]
[WhiteElo "1566"]
[BlackElo "2206"]
[Annotator "RC"]
[PlyCount "102"]
[EventDate "2022.??.??"]
[TimeControl "60"]

1. c4 {[%emt 0:00:10]} e6 {[%emt 0:01:10]} 2. g3 {[%emt 0:00:14]} d5 {[%emt 0:
00:00]} 3. Bg2 {[%emt 0:00:52]} Nf6 {[%emt 0:01:19]} 4. d4 {[%emt 0:01:12]}
Bb4+ {[%emt 0:00:43]} 5. Bd2 {[%emt 0:02:43]} Bd6 {[%emt 0:00:08]} 6. Nf3 {
[%emt 0:00:52]} O-O {[%emt 0:04:45]} 7. cxd5 {[%emt 0:01:50]} exd5 {[%emt 0:00:
00]} 8. O-O {[%emt 0:00:28]} c6 {[%emt 0:01:14]} 9. Bg5 {[%emt 0:00:45]} h6 {
[%emt 0:04:04]} 10. Bxf6 {[%emt 0:00:14]} Qxf6 {[%emt 0:00:10]} 11. Nc3 {
[%emt 0:04:45]} Re8 {[%emt 0:01:47]} 12. h3 {[%emt 0:01:26]} Bf5 {[%emt 0:00:
00]} 13. e3 {[%emt 0:00:36]} Na6 {[%emt 0:01:44]} 14. a3 {[%emt 0:00:58]} Nc7 {
[%emt 0:01:05]} 15. b4 {[%emt 0:03:40]} a5 {[%emt 0:10:04]} 16. Qb3 {[%emt 0:
00:00]} axb4 {[%emt 0:06:50]} 17. axb4 {[%emt 0:01:26]} b5 {[%emt 0:01:29]} 18.
Ra5 {[%emt 0:15:37]} Bxh3 {[%emt 0:04:28]} 19. Bxh3 {[%emt 0:00:52]} Qxf3 {
[%emt 0:00:15]} 20. Bg2 {[%emt 0:01:45]} Qf6 {[%emt 0:02:21]} 21. Rfa1 {
[%emt 0:05:42]} Rad8 {[%emt 0:02:21]} 22. Ne2 {[%emt 0:01:46]} h5 {[%emt 0:00:
00]} 23. Qc3 {[%emt 0:01:16]} h4 {[%emt 0:09:33]} 24. gxh4 {[%emt 0:11:35]}
Qxh4 {[%emt 0:03:57]} 25. Kf1 {[%emt 0:05:07]} Re6 {[%emt 0:00:45]} 26. Ng1 {
[%emt 0:05:16]} Rg6 {[%emt 0:06:55]} 27. Nf3 {[%emt 0:03:04]} Qh5 {[%emt 0:00:
00]} 28. Ne1 {[%emt 0:02:48]} Qh2 {[%emt 0:06:28]} 29. f4 {[%emt 0:05:05]} Re8
{[%emt 0:03:06]} 30. R5a2 {[%emt 0:01:23]} Qg3 {[%emt 0:01:05]} 31. Nf3 {
[%emt 0:02:10]} Rge6 {[%emt 0:02:57]} 32. Re1 {[%emt 0:04:33]} Bxf4 {[%emt 0:
00:00]} 33. Rae2 {[%emt 0:01:36]} Bd6 {[%emt 0:02:17]} 34. Rc1 {[%emt 0:02:36]}
Rf6 {[%emt 0:02:48]} 35. Rf2 {[%emt 0:02:17]} Qg4 {[%emt 0:03:07]} 36. Ne5 {
[%emt 0:01:37]} Bxe5 {[%emt 0:02:43]} 37. dxe5 {[%emt 0:00:11]} Rxf2+ {[%emt 0:
00:00]} 38. Kxf2 {[%emt 0:00:09]} Re6 {[%emt 0:01:51]} 39. Qd4 {[%emt 0:01:28]}
Qf5+ {[%emt 0:01:52]} 40. Ke2 {[%emt 0:01:09]} Rg6 {[%emt 0:01:56]} 41. Bf3 {
[%emt 0:31:00]} Ne6 {[%emt 0:34:11]} 42. Qh4 {[%emt 0:01:21]} Qxe5 {[%emt 0:00:
00]} 43. Rxc6 {[%emt 0:00:00]} Nd4+ {[%emt 0:00:00]} 44. Qxd4 {[%emt 0:00:00]}
Qh2+ {[%emt 0:00:00]} 45. Kd3 {[%emt 0:00:00]} Rxc6 {[%emt 0:00:00]} 46. Qa7 {
[%emt 0:00:00]} Qc2+ {[%emt 0:00:00]} 47. Kd4 {[%emt 0:00:00]} Qc4+ {[%emt 0:
00:00]} 48. Ke5 {[%emt 0:00:00]} Re6+ {[%emt 0:00:00]} 49. Kf5 {[%emt 0:00:00]}
Qh4 {[%emt 0:00:00]} 50. Qa8+ {[%emt 0:00:00]} Kh7 {[%emt 0:00:00]} 51. Qxd5 {
[%emt 0:00:00]} g6# {[%emt 0:00:00]} 0-1

[Event "44th Chess Olympiad Open 2022"]
[Site "Chennai"]
[Date "2022.07.29"]
[Round "1.76"]
[White "Nadan, Avinesh"]
[Black "Cabezas Solano, David Alejandro"]
[Result "*"]
[WhiteElo "1540"]
[BlackElo "2196"]
[Annotator "RC"]
[PlyCount "54"]
[EventDate "2022.??.??"]
[TimeControl "60"]

1. e4 {[%emt 0:00:16]} c5 {[%emt 0:00:15]} 2. Nf3 {[%emt 0:00:52]} Nc6 {
[%emt 0:00:13]} 3. Bc4 {[%emt 0:01:10]} e6 {[%emt 0:00:21]} 4. O-O {[%emt 0:00:
00]} Nf6 {[%emt 0:02:31]} 5. e5 {[%emt 0:01:53]} Ng4 {[%emt 0:01:10]} 6. Re1 {
[%emt 0:00:33]} Qc7 {[%emt 0:01:29]} 7. Qe2 {[%emt 0:03:45]} d6 {[%emt 0:01:41]
} 8. exd6 {[%emt 0:01:06]} Bxd6 {[%emt 0:00:13]} 9. h3 {[%emt 0:00:22]} Nf6 {
[%emt 0:02:10]} 10. Nc3 {[%emt 0:00:51]} a6 {[%emt 0:00:30]} 11. a3 {[%emt 0:
00:00]} b5 {[%emt 0:02:21]} 12. Nd5 {[%emt 0:03:28]} Qd8 {[%emt 0:00:59]} 13.
Nxf6+ {[%emt 0:00:12]} gxf6 {[%emt 0:02:56]} 14. Bd5 {[%emt 0:01:09]} Bb7 {
[%emt 0:07:34]} 15. Qe4 {[%emt 0:01:58]} Qc7 {[%emt 0:01:45]} 16. c3 {[%emt 0:
00:00]} O-O-O {[%emt 0:01:05]} 17. Bxc6 {[%emt 0:02:41]} Bxc6 {[%emt 0:00:06]}
18. Qe2 {[%emt 0:00:46]} Rhg8 {[%emt 0:01:13]} 19. a4 {[%emt 0:01:26]} Qb7 {
[%emt 0:01:06]} 20. Kh1 {[%emt 0:01:01]} Rxg2 {[%emt 0:00:47]} 21. Kxg2 {
[%emt 0:01:10]} Bxf3+ {[%emt 0:00:09]} 22. Kf1 {[%emt 0:03:09]} Bxe2+ {[%emt 0:
00:00]} 23. Kxe2 {[%emt 0:00:21]} c4 {[%emt 0:00:22]} 24. axb5 {[%emt 0:04:32]}
axb5 {[%emt 0:00:11]} 25. f3 {[%emt 0:00:46]} Rg8 {[%emt 0:00:22]} 26. d3 {
[%emt 0:01:49]} Rg2+ {[%emt 0:00:34]} 27. Ke3 {[%emt 0:00:28]} Bf4+ {[%emt 0:
00:00]} *